Cogmind - Beta 16 @@@ ROGUE MODE // 2025.12.29 @ 17:06:44 Player: BlobtheGreat Result: Destroyed by S-10 Pest with Light Assault Rifle Performance ------------- Evolutions (1) 500 Regions Visited (4) 800 Robots Destroyed (29) 145 Value Destroyed (530) 530 Prototype IDs (1) 20 Alien Tech Used (0) 0 Bonus (310) 310 TOTAL SCORE: 2305 Bonus ------- Pacifist 200 Follower Combat Kills 110 Cogmind --------- Core Integrity 0/400 Matter 295/300 Energy 95/100 System Corruption 0% Temperature Cool (0) Movement Core (50) Location -9/Mines Parts ------- > --- POWER (1) -------- (None) > --- PROPULSION (3) --- (None) > --- UTILITY (3) ------ (None) > --- WEAPON (2) ------- Heavy Hammer > --- INVENTORY (5) ---- Large Storage Unit Maul Maul Heavy Hammer Peak State ------------ > --- POWER ------------ Heavy Ion Engine > --- PROPULSION ------- Aluminum Leg > --- UTILITY ---------- Actuator Array Hardened Light Armor Plating Hacking Suite > --- WEAPON ----------- Heavy Hammer Heavy Hammer > --- INVENTORY -------- Light Ion Engine Large Storage Unit High-capacity Storage Unit Maul Maul [Rating: 16] Favorites ----------- Power Heavy Ion Engine Engine Heavy Ion Engine Propulsion Aluminum Leg Leg Aluminum Leg Utility Hacking Suite Device Actuator Array Hackware Hacking Suite Protection Hardened Light Armor Plating Weapon Heavy Hammer Impact Weapon Heavy Hammer Build | -11 -10 -10 -9 -9 ------- Run | Yrd Mat Min Mat Min Slots Evolved 2 | . . . 2 . Power . | . . . . . Propulsion 1 | . . . 1 . Utility 1 | . . . 1 . Weapon . | . . . . . Parts Attached 12 | 2 . 1 9 . Power 1 | . . . 1 . Engine 1 | . . . 1 . Core . | . . . . . Reactor . | . . . . . Propulsion 4 | 2 . . 2 . Treads . | . . . . . Leg 4 | 2 . . 2 . Wheel . | . . . . . Hover . | . . . . . Flight . | . . . . . Utility 5 | . . 1 4 . Device 1 | . . . 1 . Storage . | . . . . . Processor . | . . . . . Hackware 1 | . . . 1 . Protection 3 | . . 1 2 . Artifact . | . . . . . Weapon 2 | . . . 2 . Energy Gun . | . . . . . Energy Cannon . | . . . . . Ballistic Gun . | . . . . . Ballistic Cannon . | . . . . . Launcher . | . . . . . Special Weapon . | . . . . . Impact Weapon 2 | . . . 2 . Slashing Weapon . | . . . . . Piercing Weapon . | . . . . . Special Melee Weapon . | . . . . . Unidentified Prototypes 1 | . . . 1 . Parts Lost 7 | . . . 5 2 Power . | . . . . . Propulsion 3 | . . . 3 . Utility 4 | . . . 2 2 Weapon . | . . . . . Highest Loss Streak 3 | . . . 3 1 To Critical Strikes . | . . . . . Average Backups 4 | 1 3 4 4 4 Power 1 | 1 2 2 . . Propulsion . | . . . . . Utility 2 | . 1 2 2 1 Weapon . | . . . . 3 Tool/Special . | . . . . . Unused Backups 7 | . . . 4 3 Power 2 | . . . 2 . Propulsion . | . . . . . Utility 3 | . . . 2 1 Weapon 2 | . . . . 2 Tool/Special . | . . . . . Average Slot Usage (%) 55 | . 28 41 63 17 Leg 19 | . 28 28 17 . Device 3 | . . . 5 . Hackware 8 | . . . 10 11 Protection 10 | . . 13 11 2 Impact Weapon 13 | . . . 18 4 Peak Build Rating 16 | 2 2 3 16 6 Average Rating 9 | 1 1 2 11 3 On Entrance 2 | . 2 2 3 5 Avg Prop Armor Cover (%) 26 | 38 38 22 25 . Naked Turns . | . . . . . Heaviest Build 16 | . . 3 16 3 Greatest Support 35 | 20 20 20 35 3 Greatest Overweight (x) 1 | . . . 1 . Average Overweight (x) . | . . . . . Largest Inventory Capacity 5 | 5 5 5 5 5 Average Capacity 5 | 5 5 5 5 5 Most Carried 5 | 3 4 5 5 5 Average Carried 4 | 1 3 4 4 4 Final Capacity 5 | 5 5 5 5 5 Final Carried 5 | 3 4 5 5 4 Class Distribution -------------------- 64% | Mutant 35% | Gladiator Dominant Class ---------------- Mutant | -10/Materials Mutant | -10/Mines Mutant | -9/Materials Mutant | -9/Mines Resources | -11 -10 -10 -9 -9 ----------- Run | Yrd Mat Min Mat Min Matter Collected 356 | 220 . 10 111 15 Remotely . | . . . . . Salvage Created 945 | . . . 932 13 Parts 29 | . . . 29 . Haulers Intercepted 3 | . . . 3 . Recyclers Shooed 1 | . . . 1 . Parts Field Recycled . | . . . . . Retrieved Matter . | . . . . . Parts Self-Destructed . | . . . . . Prevented . | . . . . . Parts Restored . | . . . . . Kills | -11 -10 -10 -9 -9 ------- Run | Yrd Mat Min Mat Min Combat Hostiles Destroyed 19 | . . . 18 1 Melee 11 | . . . 10 1 Classes Destroyed 8 | . . . 8 . Worker 2 | . . . 2 . Builder 1 | . . . 1 . Hauler 3 | . . . 3 . Recycler 3 | . . . 3 . Watcher 1 | . . . 1 . Swarmer 10 | . . . 9 1 Grunt 2 | . . . 2 . Sentry 7 | . . . 7 . Best Kill Streak 8 | . . . 8 1 Combat Bots Only 5 | . . . 5 1 Max Kills in Single Turn 1 | . . . 1 1 Gunslinging . | . . . . . Exploded . | . . . . . Melee 1 | . . . 1 1 Uniques/NPCs Destroyed . | . . . . . Combat | -11 -10 -10 -9 -9 -------- Run | Yrd Mat Min Mat Min Hostile Shots Fired 143 | . . . 120 23 Missed 42 | . . . 33 9 Hits 101 | . . . 87 14 Projectile 101 | . . . 87 14 Critical Strikes 3 | . . . 3 . Damage Taken 1147 | . 23 . 1015 109 Core 403 | . . . 317 86 Absorbed by Shields . | . . . . . Core Remaining (%) 100 | 100 . 100 . . Volleys Fired . | . . . . . Largest . | . . . . . Hottest . | . . . . . Shots Fired . | . . . . . Gun . | . . . . . Cannon . | . . . . . Launcher . | . . . . . Special . | . . . . . Kinetic . | . . . . . Thermal . | . . . . . Explosive . | . . . . . Electromagnetic . | . . . . . Robot Hit Streak . | . . . . . Robot Miss Streak . | . . . . . Penetration Max . | . . . . . Secondary Targets . | . . . . . Shots Hit Robots 60 | . . . 57 3 Core Hits 10 | . . . 10 . Critical Kills 2 | . . . 2 . Critical Parts Destroyed 10 | . . . 9 1 Critical Strikes 12 | . . . 11 1 Smash 12 | . . . 11 1 Melee Attacks 73 | . . . 70 3 Impact 73 | . . . 70 3 Slashing . | . . . . . Piercing . | . . . . . Sneak Attacks 10 | . . . 10 . Combat Hostiles . | . . . . . Follow-up Attacks 7 | . . . 7 . Damage Inflicted 2499 | . 1 7 2327 164 Guns . | . . . . . Cannons . | . . . . . Explosions . | . . . . . Melee 2491 | . . . 2327 164 Ramming 8 | . 1 7 . . Kinetic . | . . . . . Thermal . | . . . . . Explosive . | . . . . . Electromagnetic . | . . . . . Impact 2491 | . . . 2327 164 Slashing . | . . . . . Piercing . | . . . . . Highest Corruption . | . . . . . Average Corruption . | . . . . . Corruption Purged . | . . . . . Corruption Blocked . | . . . . . Overload Shots . | . . . . . Overflow Damage 809 | . . . 738 71 Projectiles . | . . . . . Explosions . | . . . . . Melee 809 | . . . 738 71 Knockbacks 7 | . . . 7 . Impact 7 | . . . 7 . Kinetic . | . . . . . Secondary . | . . . . . Self-Inflicted Damage . | . . . . . Shots . | . . . . . Rammed . | . . . . . Targets Rammed 5 | . 2 3 . . Kicked 5 | . 2 3 . . Crushed . | . . . . . Highest Temperature 4 | . . . 4 . Average Temperature 2 | . . . 2 . Received Heat Transfer 297 | . . . 297 . Siege Activations . | . . . . . Martial Activations . | . . . . . Shielding Activations . | . . . . . Robots Disrupted . | . . . . . Combat Hostiles . | . . . . . Robots Corrupted 15 | . . . 15 . Combat Hostiles 8 | . . . 8 . Parts Fried 20 | . . . 20 . Impact Corruptions 35 | . . . 32 3 Robots Melted . | . . . . . Combat Hostiles . | . . . . . Parts Melted . | . . . . . Heat Transferred . | . . . . . Parts Sabotaged . | . . . . . Parts Stolen . | . . . . . Parts Stripped . | . . . . . Power Chain Reactions . | . . . . . Alert | -11 -10 -10 -9 -9 ------- Run | Yrd Mat Min Mat Min Maximum Alert Level 1 | . . . 1 . Low Security (%) 88 | 100 100 100 83 100 Level 1 11 | . . . 16 . Level 2 . | . . . . . Level 3 . | . . . . . Level 4 . | . . . . . Level 5 . | . . . . . High Security . | . . . . . Max Security . | . . . . . Peak Influence 294 | . 6 15 294 138 Initial 113 | . . . . 113 Average 92 | . . 1 123 122 Influence Increases 940 | . 12 15 838 75 Destroy 0b10 Robot/C 460 | . . . 440 20 Destroy 0b10 Robot/NC 60 | . . . 60 . Destroy Leader 140 | . . . 130 10 Allied During Kill 12 | . . . 12 . Successful Hack 26 | . 12 . 14 . Destroy Structure 2 | . . . 2 . Partial Spotted 15 | . . 15 . . Lose Combat Pursuer 225 | . . . 180 45 Influence Decreases 792 | . 12 15 547 218 Entered New Map 178 | . . . . 178 Time Decay 504 | . 12 15 457 20 Lost Part 70 | . . . 50 20 Lost Ally 40 | . . . 40 . Squads Dispatched 5 | . . 1 4 . Investigation 3 | . . 1 2 . Extermination . | . . . . . Reinforcement 2 | . . . 2 . Assault . | . . . . . Garrison . | . . . . . Intercept . | . . . . . Searches Triggered . | . . . . . Construction Impeded . | . . . . . Haulers Reinforced . | . . . . . Active Scanning Responses . | . . . . . Cargo Convoy Interrupts . | . . . . . Stealth | -11 -10 -10 -9 -9 --------- Run | Yrd Mat Min Mat Min Distress Signals 2 | . . . 2 . Communications Jammed . | . . . . . Distress Signals . | . . . . . Times Spotted 44 | . 3 . 34 7 Peak Tracking Total 7 | . 2 . 7 4 Tactical Retreats 9 | . . . 7 2 Traps | -11 -10 -10 -9 -9 ------- Run | Yrd Mat Min Mat Min Traps Triggered 4 | . 2 . 2 . Indirectly . | . . . . . Trap Hack Attempts . | . . . . . Triggered . | . . . . . Disarmed . | . . . . . Reprogrammed . | . . . . . Reused . | . . . . . Traps Extracted . | . . . . . Installed . | . . . . . Triggered . | . . . . . Machines | -11 -10 -10 -9 -9 ---------- Run | Yrd Mat Min Mat Min Machines Disabled . | . . . . . Max in Single Turn . | . . . . . Machines Repaired . | . . . . . Machines Dismantled . | . . . . . Machines Sabotaged . | . . . . . Overloaded Fab Kills . | . . . . . Hacking | -11 -10 -10 -9 -9 --------- Run | Yrd Mat Min Mat Min Machines Accessed 11 | . 2 1 8 . Terminals 9 | . 2 . 7 . Fabricators . | . . . . . Repair Stations . | . . . . . Recycling Units . | . . . . . Scanalyzers 1 | . . . 1 . Garrison Access . | . . . . . Total Hacks 27 | . 4 1 22 . Successful 16 | . 2 1 13 . Failed 11 | . 2 . 9 . Catastrophic . | . . . . . Database Lockouts . | . . . . . Manual 14 | . 3 . 11 . Terminals 23 | . 4 . 19 . Fabricators . | . . . . . Repair Stations . | . . . . . Recycling Units . | . . . . . Scanalyzers 3 | . . . 3 . Garrison Access . | . . . . . Terminal Hacks 7 | . 2 1 4 . Robot Analysis 2 | . 2 . . . Open Door 1 | . . 1 . . Terminal Index 1 | . . . 1 . Maintenance Status 1 | . . . 1 . Recall Investigation 1 | . . . 1 . Zone Layout 1 | . . . 1 . Fabricator Hacks . | . . . . . Repair Station Hacks . | . . . . . Recycling Unit Hacks . | . . . . . Scanalyzer 3 | . . . 3 . Retrieve Study 3 | . . . 3 . Garrison Access Hacks . | . . . . . Unauthorized Hacks 6 | . . . 6 . Terminals 6 | . . . 6 . Botnet 1 | . . . 1 . Skim 5 | . . . 5 . Fabricators . | . . . . . Repair Stations . | . . . . . Recycling Units . | . . . . . Scanalyzers . | . . . . . Garrison Access . | . . . . . Data Cores Recovered 1 | . . . 1 . Used . | . . . . . Hacking Detections 10 | . 2 . 8 . Full Trace Events . | . . . . . Feedback Events . | . . . . . Feedback Blocked . | . . . . . Robot Schematics Acquired . | . . . . . Robots Built . | . . . . . Authchips . | . . . . . Time . | . . . . . Total Robot Build Rating . | . . . . . Part Schematics Acquired . | . . . . . Parts Built . | . . . . . Authchips . | . . . . . Time . | . . . . . Total Part Build Rating . | . . . . . Part Studies Acquired 2 | . . . 2 . Parts Repaired . | . . . . . Time . | . . . . . Parts Recycled . | . . . . . Recycled Matter . | . . . . . Retrieved Matter . | . . . . . Retrieved Components . | . . . . . Parts Scanalyzed . | . . . . . Part Schematics Acquired . | . . . . . Parts Damaged . | . . . . . Bothacking | -11 -10 -10 -9 -9 ------------ Run | Yrd Mat Min Mat Min Used RIF Installer . | . . . . . Robots Hacked . | . . . . . Non-combat . | . . . . . Combat . | . . . . . Robot Hacks Applied . | . . . . . Relay Couplers Released . | . . . . . Fabnet Peak Effective % . | . . . . . Robots Rewired . | . . . . . Allies Hacked . | . . . . . Hacks Repelled . | . . . . . Allies | -11 -10 -10 -9 -9 -------- Run | Yrd Mat Min Mat Min Total Allies 2 | . . 2 . . Largest Group 2 | . . 2 2 . Highest-Rated Group 45 | . . 45 45 . Highest-Rated Ally 31 | . . 31 31 . Total Orders . | . . . . . Ally Attacks 29 | . . . 29 . Total Damage 460 | . . . 460 . Kills 6 | . . . 6 . Allies Corrupted . | . . . . . Allies Melted . | . . . . . Intel | -11 -10 -10 -9 -9 ------- Run | Yrd Mat Min Mat Min Active Infowar (turns) . | . . . . . Robot Analysis Total 2 | . 2 . . . Derelict Logs Recovered 2 | . . 2 . . Drone Launches . | . . . . . Drone Recoveries . | . . . . . Exploration | -11 -10 -10 -9 -9 ------------- Run | Yrd Mat Min Mat Min Turns Passed 1675 | 46 100 282 1205 42 Spaces Moved 1618 | 66 172 511 806 63 Core 1115 | 56 159 508 329 63 Treads . | . . . . . Legs 503 | 10 13 3 477 . Wheels . | . . . . . Hover . | . . . . . Flight . | . . . . . Fastest Speed 50 | 50 50 50 50 50 Average Speed 81 | 60 55 50 111 50 Slowest Speed 175 | 120 120 120 175 50 Overloaded Moves . | . . . . . Propulsion Burnouts . | . . . . . Robots Hopped . | . . . . . Potential Cave-ins . | . . . . . Cave-ins Triggered . | . . . . . Exploration Rate (%) 45 | 3 28 97 80 20 Regions Visited 4 Branch Regions 2 Pre-discovered Areas 2 | . . 2 . . Known Exits Taken 1 | . . . 1 . Unknown Exits Taken 3 | 1 1 1 . . Scrap Searched 2 | . . 1 . 1 Spaces Dug 2 | . . . 2 . Terrain Destroyed 2 | . . . 2 . Melee 2 | . . . 2 . Projectile . | . . . . . AOE . | . . . . . Terrain Rammed . | . . . . . Walls Destroyed . | . . . . . Machines Disabled . | . . . . . Actions | -11 -10 -10 -9 -9 --------- Run | Yrd Mat Min Mat Min Total 1854 | 70 175 533 1005 71 Wait 128 | . . 18 108 2 Move 1614 | 65 171 510 805 63 Hop . | . . . . . Pick Up 10 | 3 1 1 5 . Fast Attach 12 | 2 1 1 8 . Attach 6 | . . . 4 2 Detach 4 | . . . 3 1 Swap 1 | . . . 1 . Drop 9 | . . . 9 . Fire . | . . . . . Melee 65 | . . . 62 3 Ram . | . . . . . Kick 5 | . 2 3 . . Crush . | . . . . . Escape Stasis . | . . . . . Rewire . | . . . . . Trap . | . . . . . Miscellaneous . | . . . . . Route ------- -11/Scrapyard -10/Materials -10/Mines (discovered 3 exits: *Mat x2 / Sub) -9/Materials (discovered 4 exits: *Mat x3 / *Min) -9/Mines History --------- Turn | Location | Event 2 | -11/Scrapyard | Discovered new exit (range 16) 47 | -11/Scrapyard | Entered Materials 114 | -10/Materials | Discovered new exit (range 15) 147 | -10/Materials | Entered Mines 166 | -10/Mines | Discovered new exit (range 6) 185 | -10/Mines | Learned location of Storage (-8) 189 | -10/Mines | Identified exit to Subcaves 239 | -10/Mines | Met a Derelict shopkeep closing up shop 306 | -10/Mines | Build established: Mutant 400 | -10/Mines | Discovered new exit (range 6) 429 | -10/Mines | Entered Materials 429 | -9/Materials | Accompanied by 2 allies 429 | -9/Materials | Evolved 2 slots: Propulsion x1, Utility x1 434 | -9/Materials | Led the pair of lost Derelicts to an unsafe place 911 | -9/Materials | Lost 3 parts (2n1u) 1083 | -9/Materials | Identified exit to Mines 1083 | -9/Materials | Identified exit to Materials 1133 | -9/Materials | Discovered exit to Materials (range 15) 1137 | -9/Materials | Learned Recycling recycling unit intel 1152 | -9/Materials | Learned location of 1 exit from Storage 1181 | -9/Materials | Build established: Gladiator 1187 | -9/Materials | Learned 2 Storage zone layouts 1500 | -9/Materials | Core integrity fell below 50% 1634 | -9/Materials | Entered Mines 1635 | -9/Mines | Assembled infested the area 1636 | -9/Mines | Core integrity fell below 20% 1676 | -9/Mines | Destroyed by S-10 Pest with Light Assault Rifle Last Messages --------------- dispatching Demolisher response squad. 01636_ Lgt. Armor Plating destroyed. 01636_ S-10 Pest destroyed. 01637_ Searching scrap... 01637_ Found Particle Cannon. 01637_ Found Imp. Light Cannon. 01637_ Found Med. Battery. 01637_ Found Grenade Launcher. 01637_ Found 62 Matter. 01638_ Acquired 15 matter. 01671_ Destroyed Lgt. Ion Engine. 01671_ S-10 Pest system corrupted by crushing effect. 01674_ Hacking Suite destroyed. 01676_ S-10 Pest suffers critical hit (Smash). 01676_ Destroyed Flight Unit. 01676_ Destroyed Lgt. Assault Rifle. 01676_ S-10 Pest system corrupted by crushing effect. 01676_ S-10 Pest destroyed. Map ----- +----------------------------------------------------+ | ?????????????????????????????????????????????????? | | ?????????????????????????????????????????????????? | | ?????????????????????????????????????????????????? | | ?????????????????????????????????????????????????? | | ?????????????????????????????????????????????????? | | ?????????????????????????????????????????????????? | | ?????????????????????????????????????????????????? | | ?????????????????????????????????????????????????? | | ?????????????????????????????????????????????????? | | ?????????????????????????????????????????????????? | | ?????????????????????????????????????????????????? | | ?????????????????????????????????????????????????? | | ?????????????????????????????????????????????????? | | ?????????????????????????????????????????????????? | | ?????????????????????????????????????????????????? | | ?????????????????????????????????????????????????? | | ?????????????????????????????????????????????????? | | ?????????????????????????????????????????????????? | | ?????????????????????????????????????????????????? | | #????????????????????????????????????????????????? | | ##########???????????????????????????????????????? | | #???????????????????????????????????????? | | ## ##### #???????????????????????????????????????? | | ?# #??## ##??????????????????????????????????????? | | ?# #?## ##???????????###########???????????????? | | ## ### ##??????????# @ ????????? | | ######?????#%#########???????????????? | | #????## #???????????????????????? | | #### ###### ##??????????????????????? | | ???# ### s #??????????????????????? | | ???## ##?# ##??????????????????????? | | ????## #??###### #???????????????????????? | | ?????## ???????## #??????????????????????? | | ??????# ????????# #????????????????????? | | ??????## ????????## #???????????????????? | | ???????# #????????## ??????????????????? | | ???????# ##?????????##### #????????????????? | | ???????# #???????????????# #????????????????? | | ??????? ????????????????? ##????????????????? | | ??????? ?????????????????? #?????????????????? | | ??????? ??????????????????? ?????????????????? | | ????????? ???????????????????? ?????????????????? | | ?????????????????????????????????????????????????? | | ?????????????????????????????????????????????????? | | ?????????????????????????????????????????????????? | | ?????????????????????????????????????????????????? | | ?????????????????????????????????????????????????? | | ?????????????????????????????????????????????????? | | ?????????????????????????????????????????????????? | | ?????????????????????????????????????????????????? | +----------------------------------------------------+ Best States ------------- Heat Dissipation 28 Energy Generation 5 Energy Capacity 100 Matter Stores 300 Matter Capacity 300 Sight Range 16 Terrain Scan Density 10 Armor Coverage 300 Evasion (%) 55 Offensive Hacking 10 Item Schematics ----------------- None Robot Schematics ------------------ None Fabricated ------------ Nothing Repaired ---------- Nothing Studied --------- Hvy. Hammer | -9/Materials | Hacked Aluminum Leg | -9/Materials | Hacked Alien Tech Used ----------------- None Achievements -------------- None Challenges ------------ None Game ------ Seed HeavyDefenseObliterator Manual? 0 Play Time 00:11:45 Cumulative 238.7 hours Start 2025.12.29 @ 16:55:26 End 2025.12.29 @ 17:06:44 Sessions 1 Manual Loads 0 Difficulty Rogue Special Mode None Game No. 223 Rogue 223 Adventurer 0 Explorer 0 Win Type - Total 11 Types 8/0/2/0/0/0/0/0/0/1 Lore% 87 Gallery% 77 Achievement% 60 Wizard Run 0 Options --------- Layout 1 ASCII 0 Keyboard 1 Movement Arrows Keybinds 0 Fullscreen 1 Font 24/Smallcaps Map View 50x40 Zoom Use 0% Tactical HUD 1 Map Filters NONE Filters NONE Steam 1 RUN: 368459a0-b2ae-486d-9358-6d4c09588015